lending/lending_fUSD_20250508
["ID","MTS","AMOUNT","RATE_DAILY","PERIOD"]
[360300532,1746730241109,-300.0,0.0002737,2]
[360300533,1746730241120,-300.0,0.00027397,2]
[360300534,1746730241130,-413.94,0.00027397,2]
[360300535,1746730241140,-1000.0,0.00027397,2]
[360300536,1746730241152,-231.28369723,0.00027443,2]
[360300537,1746730241163,-302.09631805,0.00027608,2]
[360300538,1746730241173,-231.776,0.00027624,2]
[360300539,1746730241182,-1182.01538946,0.00027624,2]
[360300540,1746730241196,-271.98461054,0.00027624,2]
[360300541,1746730241205,-621.10635479,0.00027624,2]
[360300542,1746730241223,-518.34264521,0.00027624,2]
[360300543,1746730241232,-1000.0,0.00027641,7]
[360300544,1746730241242,-500.0,0.00027641,7]
[360300545,1746730241253,-363.21965558,0.00027929,5]
[360300546,1746730241263,-1035.94325661,0.00027969,18]
[360300547,1746730241273,-500.0,0.00028,2]
[360300548,1746730241282,-1000.0,0.00028127,2]
[360300549,1746730241291,-152.0,0.00028132,3]
[360300550,1746730241301,-1890.1860364,0.00028235,2]
[360300551,1746730241311,-957.76,0.00028369,2]
[360300552,1746730241321,-1000.0,0.00028463,7]
[360300553,1746730241332,-236.32330942,0.00028521,2]
[360300554,1746730241343,-200.0,0.00028602,14]
[360300555,1746730241353,-204.42134693,0.0002863,2]
[360300556,1746730241366,-31.90196249,0.0002863,2]
[360300557,1746730241376,-2110.0,0.00028637,2]
[360300558,1746730241386,-1074.0,0.00028714,5]
[360300559,1746730241396,-1035.94325661,0.00028728,19]
[360300560,1746730241405,-236.32330942,0.00028767,2]
[360300561,1746730241415,-413.94,0.00028767,2]
[360300562,1746730241425,-1730.842,0.00028812,21]
[360300563,1746730241435,-239.84119403,0.00028812,2]
[360300564,1746730241444,-1911.7430679,0.00028851,4]
[360300565,1746730241454,-236.32330942,0.00028877,2]
[360300566,1746730241463,-170.223,0.00028877,21]
[360300567,1746730241474,-264.0592,0.000289,2]
[360300568,1746730241486,-236.32330942,0.00028986,2]
[360300569,1746730241497,-4330.26728703,0.00029,2]
[360300570,1746730241506,-550.0,0.00029,2]
[360300571,1746730241516,-7718.36690298,0.00029,2]
[360300581,1746730243620,-5935.0,0.00024624,2]
[360300582,1746730243631,-1480.20309702,0.00029,2]
[360300583,1746730243641,-152.0,0.00029087,4]
[360300584,1746730243650,-236.32330942,0.00029096,2]
[360300585,1746730243660,-732.0,0.00029099,2]
[360300586,1746730243670,-500.0,0.00029107,7]
[360300587,1746730243679,-500.0,0.00029107,7]
[360300588,1746730243689,-484.89,0.00029107,7]
[360300589,1746730243699,-500.0,0.00029107,7]
[360300590,1746730243709,-500.0,0.00029107,7]
[360300591,1746730243718,-500.0,0.00029107,7]
[360300592,1746730243727,-500.0,0.00029107,7]
[360300593,1746730243737,-500.0,0.00029107,7]
[360300594,1746730243746,-500.0,0.00029107,7]
[360300595,1746730243756,-500.0,0.00029107,7]
[360300596,1746730243765,-500.0,0.00029107,7]
[360300597,1746730243775,-500.0,0.00029107,7]
[360300598,1746730243784,-500.0,0.00029107,7]
[360300599,1746730243794,-500.0,0.00029107,7]
[360300600,1746730243804,-500.0,0.00029107,7]
[360300601,1746730243814,-500.0,0.00029107,7]
[360300602,1746730243824,-500.0,0.00029107,7]
[360300603,1746730243833,-500.0,0.00029107,7]
[360300604,1746730243843,-500.0,0.00029107,7]
[360300605,1746730243852,-500.0,0.00029107,7]
[360300606,1746730243862,-500.0,0.00029107,7]
[360300607,1746730243872,-500.0,0.00029107,7]
[360300608,1746730243882,-619.31,0.00029107,7]
[360300609,1746730243891,-160.67910617,0.00029107,7]
[360300610,1746730243903,-339.32089383,0.00029107,7]
[360300611,1746730243913,-634.27910617,0.00029137,2]
[360300612,1746730243925,-1475.72089383,0.00029137,2]
[360300613,1746730243935,-236.32330942,0.00029205,2]
[360300614,1746730243945,-1000.0,0.00029285,7]
[360300615,1746730243955,-279.99246678,0.00029285,7]
[360300616,1746730243991,-220.00753322,0.00029285,7]
[360300617,1746730244002,-236.32330942,0.00029315,2]
[360300618,1746730244011,-732.0,0.00029399,2]
[360300619,1746730244021,-236.32330942,0.00029452,2]
[360300620,1746730244031,-1035.94325661,0.00029486,21]
[360300621,1746730244040,-314.75,0.000295,2]
[360300622,1746730244049,-167.44386379,0.000295,2]
[360300623,1746730244059,-2000.0,0.00029506,15]
[360300625,1746730244068,-200.0,0.00029506,2]
[360300626,1746730244078,-236.32330942,0.00029562,2]
[360300627,1746730244087,-157.16575653,0.00029569,15]
[360300628,1746730244097,-153.0,0.00029589,2]
[360300629,1746730244106,-223.0,0.00029589,2]
[360300630,1746730244116,-223.0,0.00029589,2]
[360300631,1746730244126,-223.0,0.00029589,2]
[360300632,1746730244135,-223.0,0.00029589,2]
[360300633,1746730244145,-223.0,0.00029589,2]
[360300634,1746730244154,-223.0,0.00029589,2]
[360300635,1746730244163,-223.0,0.00029589,2]
[360300636,1746730244173,-223.0,0.00029589,2]
[360300637,1746730244183,-153.0,0.00029589,2]
[360300638,1746730244193,-153.0,0.00029589,2]
[360300639,1746730244203,-153.0,0.00029589,2]
[360300640,1746730244212,-153.0,0.00029589,2]
[360300641,1746730244221,-153.0,0.00029589,2]
[360300642,1746730244231,-153.0,0.00029589,2]
[360300643,1746730244240,-153.0,0.00029589,2]
[360300644,1746730244250,-153.0,0.00029589,2]
[360300645,1746730244259,-153.0,0.00029589,2]
[360300646,1746730244269,-153.0,0.00029589,2]
[360300647,1746730244279,-153.0,0.00029589,2]
[360300648,1746730244288,-223.0,0.00029589,2]
[360300649,1746730244297,-223.0,0.00029589,2]
[360300650,1746730244307,-223.0,0.00029589,2]
[360300651,1746730244318,-141.06172241,0.00029589,2]
[360300652,1746730246385,-81.93827759,0.00029589,2]
[360300653,1746730246395,-223.0,0.00029589,2]
[360300654,1746730246405,-223.0,0.00029589,2]
[360300655,1746730246415,-96.70098905,0.00029589,2]
[360300662,1746730392507,438.0,0.0003,30]
[360300666,1746730598922,150.0,0.0002,5]
[360300670,1746730691352,250.0,0.00017,2]
[360300673,1746730692485,300.0,0.00019,2]
[360300674,1746730736771,330.0,0.0003,30]
[360300677,1746730896300,845.73414203,0.0003,30]
[360300683,1746731052877,419.0,0.0003,30]
[360300693,1746731138336,450.0,0.00029714,30]
[360300704,1746731284318,238.09858763,0.0003,30]
[360300711,1746731432295,-164.95309063,0.00019801,2]
[360300712,1746731432304,-258.71754385,0.00019882,2]
[360300713,1746731432454,-257.56134344,0.00019882,2]
[360300714,1746731432509,-408.29759151,0.00019882,2]
[360300745,1746731438409,-649.47811258,0.00019882,2]
[360300746,1746731438425,-999.42965019,0.00019882,2]
[360300747,1746731438436,-677.59582331,0.00019882,2]
[360300748,1746731438446,-250.0,0.00019901,2]
[360300749,1746731438456,-86.5283767,0.00019946,2]
[360300750,1746731438468,-1113.4716233,0.00019946,2]
[360300751,1746731438477,-300.0,0.00019946,2]
[360300752,1746731438487,-1644.1587566,0.00019947,2]
[360300753,1746731438499,-4505.85772,0.00019947,2]
[360300754,1746731438515,-730.04454306,0.00019947,2]
[360300755,1746731438624,-5619.93898034,0.00019947,2]
[360300756,1746731438635,-12500.0,0.00019956,2]
[360300757,1746731438645,-12500.0,0.00019965,2]
[360300758,1746731438656,-85910.86958921,0.00019972,2]
[360300759,1746731438666,-12500.0,0.00019973,2]
[360300760,1746731438676,-12500.0,0.00019974,2]
[360300761,1746731438686,-12500.0,0.00019982,2]
[360300762,1746731438696,-12500.0,0.00019991,2]
[360300763,1746731438706,-12500.0,0.0002,2]
[360300764,1746731438716,-988.78571573,0.000209,4]
[360300765,1746731438727,-350.0,0.00021,2]
[360300766,1746731438736,-262.82,0.00021642,2]
[360300767,1746731438746,-355.0,0.0002172,2]
[360300768,1746731438756,-1680.0,0.00021825,2]
[360300769,1746731438765,-250.0,0.00021842,2]
[360300770,1746731438775,-3251.08006484,0.00021924,2]
[360300771,1746731438785,-250.0,0.00021941,2]
[360300772,1746731438796,-211.07,0.00021976,2]
[360300773,1746731438806,-1000.0,0.00022543,2]
[360300774,1746731438815,-400.0,0.00023,2]
[360300775,1746731438825,-300.0,0.00023014,2]
[360300777,1746731438834,-706.62,0.00023836,2]
[360300779,1746731438843,-1688.0,0.0002388,2]
[360300780,1746731438853,-3251.08006484,0.00023965,2]
[360300782,1746731438862,-300.0,0.00024384,2]
[360300784,1746731438872,-269.76,0.000246,2]
[360300786,1746731438883,-150.0,0.00024624,2]
[360300788,1746731438893,-500.0,0.00024673,2]
[360300790,1746731438902,-151.0,0.00024685,2]
[360300792,1746731438912,-153.14492261,0.0002469,2]
[360300794,1746731438925,-500.0,0.00024773,2]
[360300796,1746731438943,-16857.61720645,0.000248,3]
[360300807,1746731440624,-262.2161907,0.0002479,2]
[360300808,1746731440634,-12962.81230489,0.000248,2]
[360300809,1746731440783,-241394.34306111,0.000248,2]
[360300810,1746731440793,-42988.12360735,0.000248,3]
[360300811,1746731440803,-95419.45228402,0.000248,2]
[360300812,1746731440814,-88556.54771598,0.000248,2]
[360300813,1746731440825,-200.0,0.00024853,2]
[360300814,1746731440834,-500.0,0.00024878,2]
[360300815,1746731440845,-500.0,0.00024878,2]
[360300816,1746731440858,-500.0,0.00024878,2]
[360300817,1746731440869,-186.65753604,0.00024878,2]
[360300818,1746731440879,-500.0,0.00024878,2]
[360300819,1746731440888,-500.0,0.00024878,2]
[360300820,1746731440898,-500.0,0.00024878,2]
[360300821,1746731440907,-500.0,0.00024878,2]
[360300822,1746731440917,-500.0,0.00024878,2]
[360300823,1746731440928,-500.0,0.00024878,2]
[360300824,1746731440937,-500.0,0.00024878,2]
[360300825,1746731440947,-500.0,0.00024878,2]
[360300826,1746731440956,-500.0,0.00024878,2]
[360300827,1746731440966,-500.0,0.00024878,2]
[360300828,1746731440977,-500.0,0.00024878,2]
[360300829,1746731440987,-500.0,0.00024878,2]
[360300830,1746731440996,-500.0,0.00024878,2]
[360300831,1746731441007,-500.0,0.00024878,2]
[360300832,1746731441017,-500.0,0.00024878,2]
[360300833,1746731441026,-500.0,0.00024878,2]
[360300834,1746731441036,-500.0,0.00024878,2]
[360300835,1746731441046,-500.0,0.00024878,2]
[360300836,1746731441055,-500.0,0.00024878,2]
[360300837,1746731441064,-500.0,0.00024878,2]
[360300838,1746731441074,-500.0,0.00024878,2]
[360300839,1746731441083,-500.0,0.00024878,2]
[360300840,1746731441093,-500.0,0.00024878,2]
[360300841,1746731441103,-500.0,0.00024878,2]
[360300842,1746731441112,-500.0,0.00024878,2]
[360300844,1746731441122,-500.0,0.00024878,2]
[360300846,1746731441131,-500.0,0.00024878,2]
[360300848,1746731441141,-500.0,0.00024878,2]
[360300849,1746731441150,-500.0,0.00024878,2]
[360300850,1746731441160,-500.0,0.00024878,2]
[360300851,1746731441170,-500.0,0.00024878,2]
[360300852,1746731441180,-500.0,0.00024878,2]
[360300853,1746731441190,-500.0,0.00024878,2]
[360300854,1746731441201,-500.0,0.00024878,2]
[360300855,1746731441211,-618.09380634,0.00024878,2]
[360300856,1746731441221,-500.0,0.00024878,2]
[360300857,1746731441232,-500.0,0.00024878,2]
[360300858,1746731441242,-500.0,0.00024878,2]
[360300859,1746731441253,-642.38500765,0.00024878,2]
[360300860,1746731441265,-642.38500765,0.00024878,2]
[360300861,1746731441277,-642.38500765,0.00024878,2]
[360300862,1746731441294,-642.38500765,0.00024878,2]
[360300863,1746731441304,-642.38500765,0.00024878,2]
[360300864,1746731441313,-642.38500765,0.00024878,2]
[360300865,1746731441324,-642.38500765,0.00024878,2]
[360300866,1746731441334,-642.38500765,0.00024878,2]
[360300867,1746731441345,-642.38500765,0.00024878,2]
[360300868,1746731441356,-642.38500765,0.00024878,2]
[360300869,1746731441366,-642.38500765,0.00024878,2]
[360300870,1746731441375,-642.38500765,0.00024878,2]
[360300871,1746731441385,-642.38500765,0.00024878,2]
[360300872,1746731441394,-642.38500765,0.00024878,2]
[360300873,1746731441403,-642.38500765,0.00024878,2]
[360300874,1746731441413,-642.38500765,0.00024878,2]
[360300875,1746731441422,-642.38500765,0.00024878,2]
[360300876,1746731441431,-642.38500765,0.00024878,2]
[360300877,1746731441443,-642.38500765,0.00024878,2]
[360300878,1746731441452,-642.38500765,0.00024878,2]
[360300879,1746731441461,-642.38500765,0.00024878,2]
[360300880,1746731441471,-642.38500765,0.00024878,2]
[360300881,1746731441480,-642.38500765,0.00024878,2]
[360300882,1746731441490,-642.38500765,0.00024878,2]
[360300883,1746731441499,-642.38500765,0.00024878,2]
[360300884,1746731441510,-642.38500765,0.00024878,2]
[360300885,1746731441521,-642.38500765,0.00024878,2]
[360300886,1746731441531,-642.38500765,0.00024878,2]
[360300887,1746731441540,-642.38500765,0.00024878,2]
[360300888,1746731441551,-642.38500765,0.00024878,2]
[360300889,1746731441560,-642.38500765,0.00024878,2]
[360300890,1746731441569,-642.38500765,0.00024878,2]
[360300891,1746731441579,-619.44268594,0.00024878,2]
[360300892,1746731441589,-619.44268594,0.00024878,2]
[360300893,1746731441599,-619.44268594,0.00024878,2]
[360300894,1746731441610,-619.44268594,0.00024878,2]
[360300895,1746731441620,-619.44268594,0.00024878,2]
[360300896,1746731441633,-619.44268594,0.00024878,2]
[360300897,1746731441645,-619.44268594,0.00024878,2]
[360300898,1746731441657,-619.44268594,0.00024878,2]
[360300899,1746731441667,-619.44268594,0.00024878,2]
[360300900,1746731441677,-619.44268594,0.00024878,2]
[360300901,1746731441686,-619.44268594,0.00024878,2]
[360300902,1746731441696,-619.44268594,0.00024878,2]
[360300903,1746731441705,-619.44268594,0.00024878,2]
[360300904,1746731441714,-32432.54989874,0.00024879,3]
[360300905,1746731441730,-886.88,0.00024879,3]
[360300906,1746731443003,500.0,0.00029689,30]
[360300913,1746731443246,500.0,0.00029963,30]
[360300916,1746731443453,-507.53028692,0.00024879,3]
[360300917,1746731443560,-855.329631,0.00024879,3]
[360300918,1746731443573,-16286.67987686,0.00024879,3]
[360300919,1746731443614,-68722.51193448,0.00024879,3]
[360300920,1746731443623,-151.0,0.0002489,7]
[360300921,1746731443633,-151.0,0.0002489,7]
[360300922,1746731443643,-11676.97365825,0.0002489,3]
[360300923,1746731443668,-3268.2265522,0.0002489,3]
[360300924,1746731443723,-515.811067,0.0002489,3]
[360300925,1746731443735,-641.99246739,0.0002489,3]
[360300926,1746731443746,-565.99524606,0.0002489,3]
[360300927,1746731443758,-13253.871416,0.0002489,3]
[360300928,1746731443767,-151.0,0.0002489,7]
[360300929,1746731443777,-151.0,0.0002489,7]
[360300930,1746731443786,-151.0,0.0002489,7]
[360300931,1746731443796,-202.401284,0.000249,7]
[360300932,1746731443805,-202.401284,0.000249,7]
[360300933,1746731443815,-151.0,0.000249,7]
[360300934,1746731443824,-151.0,0.000249,7]
[360300935,1746731443834,-1400.0,0.000249,9]
[360300936,1746731443843,-151.0,0.000249,7]
[360300937,1746731443852,-151.0,0.000249,7]
[360300938,1746731443861,-46997.0061548,0.000249,3]
[360300939,1746731443871,-1974.91689,0.000249,7]
[360300940,1746731443880,-1974.91689,0.000249,7]
[360300941,1746731443890,-1251.878692,0.000249,7]
[360300942,1746731443901,-1251.878692,0.000249,7]
[360300943,1746731443911,-23498.5030774,0.00024989,3]
[360300944,1746731443922,-21968.69503063,0.0002499,3]
[360300945,1746731446389,-1046.226647,0.0002499,3]
[360300946,1746731446400,-2024.0,0.0002499,3]
[360300947,1746731446411,-289.65155637,0.0002499,3]
[360300948,1746731446423,-4594.2971729,0.0002499,3]
[360300949,1746731446435,-23498.5030774,0.0002499,3]
[360300950,1746731446445,-296.478012,0.0002499,7]
[360300951,1746731446455,-151.0,0.0002499,7]
[360300952,1746731446466,-151.0,0.0002499,7]
[360300953,1746731446476,-151.0,0.0002499,7]
[360300954,1746731446485,-450.0,0.00025,2]
[360300955,1746731446494,-151.0,0.00025,7]
[360300956,1746731446504,-151.0,0.00025,7]
[360300957,1746731446513,-151.0,0.00025,7]
[360300958,1746731446522,-748.00522991,0.00025,3]
[360300959,1746731446534,-300.21196048,0.00025,3]
[360300960,1746731446552,-4513.78280961,0.00025,3]
[360300961,1746731446561,-150.0,0.00025002,7]
[360300962,1746731446571,-150.0,0.00025082,2]
[360300963,1746731446581,-928.0,0.00025082,2]
[360300964,1746731446591,-1302.0,0.00025082,2]
[360300965,1746731446600,-798.0,0.00025082,2]
[360300966,1746731446610,-383.214,0.00025082,2]
[360300967,1746731446619,-296.9,0.00025082,2]
[360300968,1746731446629,-826.717,0.00025082,2]
[360300969,1746731446638,-153.0,0.00025082,2]
[360300970,1746731446648,-5935.0,0.00025082,2]
[360300971,1746731446657,-500.0,0.00025175,7]
[360300972,1746731446667,-5562.0,0.000253,5]
[360300973,1746731446676,-1000.0,0.00025361,2]
[360300974,1746731446685,-23498.5030774,0.00025997,3]
[360300975,1746731446695,-3251.08006484,0.00026007,2]
[360300976,1746731446704,-207.4,0.00026104,2]
[360300977,1746731446714,-160.87971806,0.00026104,2]
[360300978,1746731446723,-668.65185757,0.00026104,2]
[360300979,1746731446733,-292.61830401,0.00026104,2]
[360300980,1746731446742,-269.75,0.00026142,2]
[360300981,1746731446752,-600.0,0.00026271,7]
[360300982,1746731446761,-180.02462366,0.00026441,2]
[360300983,1746731446771,-221.9785729,0.00026441,2]
[360300984,1746731446780,-797.0125138,0.00026441,2]
[360300985,1746731446790,-797.0125138,0.00026441,2]
[360300986,1746731446799,-797.0125138,0.00026441,2]
[360300987,1746731446808,-797.0125138,0.00026441,2]
[360300988,1746731446818,-797.0125138,0.00026441,2]
[360300989,1746731446827,-797.0125138,0.00026441,2]
[360300990,1746731446836,-797.0125138,0.00026441,2]
[360300991,1746731446846,-797.0125138,0.00026441,2]
[360300992,1746731446855,-797.0125138,0.00026441,2]
[360300993,1746731446865,-797.0125138,0.00026441,2]
[360300994,1746731446874,-327.84975275,0.00026441,2]
[360300995,1746731446884,-797.0125138,0.00026441,2]
[360300996,1746731446893,-797.0125138,0.00026441,2]
[360300998,1746731446902,-797.0125138,0.00026441,2]
[360301000,1746731446911,-797.0125138,0.00026441,2]
[360301002,1746731446920,-836.86313949,0.00026441,2]
[360301003,1746731446933,-836.86313949,0.00026441,2]
[360301004,1746731446943,-836.86313949,0.00026441,2]
[360301005,1746731446952,-836.86313949,0.00026441,2]
[360301006,1746731446962,-836.86313949,0.00026441,2]
[360301007,1746731446972,-836.86313949,0.00026441,2]
[360301008,1746731446982,-836.86313949,0.00026441,2]
[360301009,1746731446991,-836.86313949,0.00026441,2]
[360301010,1746731447001,-836.86313949,0.00026441,2]
[360301011,1746731447010,-29922.8704069,0.00026442,3]
[360301012,1746731447020,-745.65223616,0.00026652,2]
[360301013,1746731447030,-211.24,0.000268,2]
[360301014,1746731447039,-211.24,0.000268,2]
[360301015,1746731447048,-211.24,0.000268,2]
[360301016,1746731447058,-211.24,0.000268,2]
[360301017,1746731447067,-211.24,0.000268,2]
[360301018,1746731447077,-211.24,0.000268,2]
[360301019,1746731447087,-211.24,0.000268,2]
[360301020,1746731447097,-211.24,0.000268,2]
[360301021,1746731447106,-211.24,0.000268,2]
[360301022,1746731447115,-211.24,0.000268,2]
[360301023,1746731447125,-500.0,0.00026819,7]
[360301024,1746731447135,-262.21619069,0.00026894,2]
[360301025,1746731447144,-500.0,0.00027,2]
[360301026,1746731447153,-200.0,0.00027086,2]
[360301027,1746731447162,-600.0,0.00027093,7]
[360301028,1746731447172,-200.0,0.00027169,2]
[360301029,1746731447182,-211.24,0.00027387,2]
[360301030,1746731447192,-248.36,0.00027397,2]
[360301031,1746731447202,-1000.0,0.00027397,2]
[360301032,1746731447212,-600.0,0.000274,2]
[360301033,1746731447221,-215.0738,0.00027473,2]
[360301034,1746731447231,-4000.0,0.00027579,2]
[360301035,1746731447241,-151.0,0.00027712,7]
[360301036,1746731447250,-151.0,0.00027712,7]
[360301037,1746731447260,-1000.0,0.0002778,2]
[360301038,1746731447269,-48.71653357,0.00027857,2]
[360301039,1746731447282,-725.94038014,0.00027857,2]
[360301040,1746731447291,-600.0,0.00027915,7]
[360301041,1746731447301,-1000.0,0.00027936,2]
[360301042,1746731447311,-500.0,0.00028,2]
[360301043,1746731447320,-3251.08006484,0.00028048,2]
[360301044,1746731447330,-321.645,0.00028082,2]
[360301045,1746731447340,-153.14492261,0.00028132,2]
[360301046,1746731447349,-1000.0,0.00028179,2]
[360301047,1746731447359,-300.0,0.00028196,2]
[360301048,1746731447368,-1000.0,0.000282,2]
[360301049,1746731447380,-500.0,0.00028463,7]
[360301050,1746731447390,-1000.0,0.00028473,2]
[360301051,1746731447400,-1000.0,0.00028483,2]
[360301052,1746731447411,-1000.0,0.00028517,2]
[360301053,1746731447422,-160.47047564,0.00028521,2]
[360301054,1746731447433,-1000.0,0.00028599,2]
[360301055,1746731447443,-23498.5030774,0.00028603,3]
[360301056,1746731447452,-1000.0,0.00028613,2]
[360301057,1746731447462,-160.47047564,0.00028685,2]
[360301058,1746731447472,-150.0,0.000287,2]
[360301059,1746731447482,-211.24,0.00028727,2]
[360301060,1746731447491,-183.58356785,0.00028729,2]
[360301061,1746731447500,-576.596456,0.00028737,7]
[360301063,1746731558159,450.0,0.00029714,30]
[360301064,1746731653409,500.0,0.0003,30]
[360301065,1746732198869,500.0,0.00030114,120]
[360301066,1746732256349,500.0,0.0003,30]
[360301068,1746732311359,500.0,0.00029722,30]
[360301069,1746732311616,500.0,0.00029996,30]
[360301070,1746732325890,762.21708874,0.000108,2]
[360301071,1746732327147,65041.36,0.0003,30]
[360301072,1746732329803,1885.78615623,0.00011,2]
[360301073,1746732336816,1316.42643881,9e-05,2]
[360301074,1746732355585,1254.38741807,6.94e-05,2]
[360301075,1746732367930,1064.77354034,8e-05,2]
[360301077,1746732440413,3526.31623351,0.0001305,2]
[360301078,1746732472591,4281.65897186,0.00013,2]
[360301079,1746732475563,2332.55079483,0.0001,2]
[360301080,1746732475597,4560.40341951,0.0001,2]
[360301082,1746732503627,250.0,0.00017,2]
[360301083,1746732504705,300.0,0.00019,2]
[360301084,1746732514975,4889.59658049,0.000149,2]
[360301085,1746732514996,1442.24697153,0.000149,2]
[360301086,1746732520345,490.77337371,0.000154,2]
[360301087,1746732525391,8066.97965476,0.00013368,2]
[360301088,1746732525414,10000.0,0.00013368,2]
[360301089,1746732525435,1243.61893512,0.00013368,2]
[360301090,1746732525752,153.22906034,0.000189,2]
[360301125,1746732631506,-408.834693,0.00019784,2]
[360301127,1746732631517,-810.23352099,0.00019836,2]
[360301129,1746732631526,-408.834693,0.00019858,2]
[360301131,1746732631537,-167.73072667,0.00019861,2]
[360301132,1746732631547,-810.23352099,0.00019861,2]
[360301133,1746732631558,-17285.82774738,0.0002,2]
[360301134,1746732631578,-11179.9248433,0.0002,2]
[360301135,1746732631668,-298.1025574,0.0002,2]
[360301136,1746732631723,-1446.0833,0.0002,2]
[360301137,1746732631735,-2618.12136224,0.0002,2]
[360301138,1746732631779,-59598.89305147,0.0002,2]
[360301225,1746732637713,-1479.81197628,0.0002,2]
[360301226,1746732637724,-974.93,0.0002,2]
[360301227,1746732637737,-1320.45,0.0002,2]
[360301233,1746732639665,-396.28138702,0.0002,2]
[360301234,1746732639678,-261.21468058,0.0002,2]
[360301235,1746732639985,-1854.28,0.0002,2]
[360301236,1746732641175,-97139.71942526,0.0002,2]
[360301237,1746732641184,-93388.16828685,0.0002,2]
[360301238,1746732641193,-955.82619194,0.000209,4]
[360301239,1746732641203,-5800.0,0.00020961,2]
[360301240,1746732641212,-350.0,0.00021,2]
[360301241,1746732641226,-153.14492261,0.00021818,2]
[360301242,1746732641236,-200.0,0.00021918,2]
[360301243,1746732641245,-200.0,0.00021918,2]
[360301244,1746732641255,-200.0,0.00021918,2]
[360301245,1746732641263,-577.0,0.00021918,2]
[360301246,1746732641272,-200.0,0.00021918,2]
[360301247,1746732641281,-885.0,0.00021918,2]
[360301248,1746732641291,-200.0,0.00022,2]
[360301249,1746732641302,-200.0,0.00022,2]
[360301250,1746732641312,-611.0,0.00022301,2]
[360301251,1746732641321,-400.0,0.00023,2]
[360301252,1746732641330,-84295.0,0.000242,2]
[360301253,1746732641339,-5562.0,0.000245,3]
[360301254,1746732641350,-165.1,0.00024621,2]
[360301255,1746732641359,-222.0,0.00024658,7]
[360301256,1746732641368,-222.0,0.00024658,7]
[360301257,1746732641378,-500.0,0.00024773,2]
[360301258,1746732641387,-58445.237236,0.000248,3]
[360301259,1746732641398,-5562.0,0.000248,5]
[360301260,1746732641407,-151.0,0.000249,7]
[360301261,1746732641416,-151.0,0.000249,7]
[360301262,1746732641426,-202.099992,0.000249,7]
[360301263,1746732641435,-151.0,0.000249,7]
[360301264,1746732641445,-151.0,0.000249,7]
[360301265,1746732641455,-271.661554,0.000249,7]
[360301266,1746732641465,-271.661554,0.000249,7]
[360301267,1746732641473,-151.0,0.000249,7]
[360301268,1746732641482,-151.0,0.000249,7]
[360301269,1746732641491,-151.0,0.0002499,7]
[360301270,1746732641501,-151.0,0.0002499,7]
[360301271,1746732641511,-151.0,0.0002499,7]
[360301272,1746732641520,-151.0,0.0002499,7]
[360301273,1746732641529,-188.353843,0.0002499,7]
[360301274,1746732641538,-188.353843,0.0002499,7]
[360301275,1746732641547,-151.0,0.0002499,7]
[360301276,1746732641556,-151.0,0.0002499,7]
[360301277,1746732641565,-151.0,0.0002499,7]
[360301278,1746732641574,-450.0,0.00025,2]
[360301279,1746732641583,-3593.58637312,0.00025,2]
[360301280,1746732641592,-280.0,0.000253,10]
[360301281,1746732641601,-967.81,0.00025713,2]
[360301282,1746732641610,-207.4,0.00026104,2]
[360301283,1746732641620,-500.0,0.00026271,7]